bitfinex/quotes_ETHUSD_20260102
["timestamp","ask_amount","ask_price","bid_price","bid_amount"]
[1767360902630,2.36877803,3051.7,3051.1,2.31533654]
[1767360907895,2.36877803,3052.3,3051.6,3.75282673]
[1767360908102,2.37077803,3052.6,3051.9,2.31433654]
[1767360909922,3.27791864,3052.6,3051.9,2.31433654]
[1767360910227,2.37077803,3052.5,3051.9,2.31433654]
[1767360910416,0.56486967,3052.4,3051.9,2.31433654]
[1767360910731,2.9336477,3052.4,3051.9,2.31433654]
[1767360912231,2.36877803,3052.4,3051.9,2.31433654]
[1767360913113,2.36877803,3052.3,3051.6,2.31433654]
[1767360913331,2.36877803,3052.3,3051.7,2.31433654]
[1767360914122,2.36877803,3052.1,3051.7,2.31433654]
[1767360918919,2.36877803,3052.0,3051.3,2.31433654]
[1767360921342,3.27664733,3051.9,3051.3,2.31433654]
[1767360921543,2.36877803,3051.8,3051.3,2.31433654]
[1767360923345,2.36877803,3051.7,3051.3,2.31433654]
[1767360924048,2.36877803,3051.7,3051.1,2.31533654]
[1767360925724,3.27696878,3051.7,3051.1,2.31533654]
[1767360926042,2.4865343,3051.6,3051.1,2.31533654]
[1767360927552,2.4865343,3051.4,3051.0,0.002]
[1767360928235,2.4865343,3051.4,3051.0,2.37753983]
[1767360932337,3.06290031,3051.4,3051.0,2.37753983]
[1767360933954,2.4865343,3051.3,3051.0,2.37753983]
[1767360936155,2.4865343,3051.2,3050.8,2.37553983]
[1767360940634,2.4865343,3051.2,3050.6,0.001]
[1767360940832,2.4865343,3051.2,3050.6,2.37653983]
[1767360941046,7.2001347,3051.4,3050.6,2.37653983]
[1767360941358,1.04577303,3051.3,3050.7,2.37553983]
[1767360941658,5.76376869,3051.4,3050.7,2.37553983]
[1767360943438,2.4865343,3051.3,3050.7,2.37553983]
[1767360945768,2.4865343,3051.1,3050.7,2.37553983]
[1767360948642,5.7640693,3051.1,3050.7,2.37553983]
[1767360949978,2.4865343,3051.0,3050.7,2.37553983]
[1767360950181,3.47668149,3051.0,3050.7,2.37553983]
[1767360951046,2.4865343,3050.9,3050.6,0.001]
[1767360951478,2.4865343,3050.9,3050.6,2.37653983]
[1767360954162,0.99014719,3051.0,3050.6,2.37653983]
[1767360956479,0.86,3051.2,3050.6,2.37653983]
[1767360956679,3.27686207,3051.7,3050.7,2.26349478]
[1767360956983,2.47830144,3051.6,3050.7,2.26349478]
[1767360958485,2.47830144,3051.6,3050.8,2.26349478]
[1767360958658,2.47830144,3051.4,3050.8,2.26349478]
[1767360962689,2.47830144,3051.4,3050.8,2.26549478]
[1767360962863,2.47930144,3051.4,3050.8,2.26549478]
[1767360963264,2.47830144,3051.3,3050.8,2.26549478]
[1767360967060,5.75561423,3051.3,3050.8,2.26549478]
[1767360967264,2.47830144,3051.2,3050.8,0.002]
[1767360967474,2.47830144,3051.2,3050.6,2.26449478]
[1767360969591,2.47830144,3051.1,3050.6,2.26449478]
[1767360975677,0.001,3051.2,3050.7,2.26349478]
[1767360975887,0.001,3051.2,3050.7,2.57604426]
[1767360977099,2.47930144,3051.2,3050.7,2.57604426]
[1767360979503,2.47930144,3051.4,3050.8,2.26349478]
[1767360979673,0.001,3051.4,3050.8,2.26349478]
[1767360979873,0.001,3051.4,3050.9,0.58539767]
[1767360980075,2.47830144,3051.3,3050.9,2.84889245]
[1767360980374,2.47830144,3051.3,3050.9,2.26349478]
[1767360981299,2.47930144,3051.3,3050.9,2.26349478]
[1767360984089,2.47930144,3051.3,3050.6,2.26449478]
[1767360985276,3.27829381,3051.3,3050.6,2.26449478]
[1767360985569,2.47830144,3051.2,3050.6,2.26449478]
[1767360985774,2.47830144,3051.2,3050.8,2.26349478]
[1767360985974,0.001,3051.3,3050.8,2.26349478]
[1767360986575,2.44490487,3051.3,3050.8,2.26349478]
[1767360988705,2.44390487,3051.2,3050.6,0.001]
[1767360989004,2.44390487,3050.8,3050.2,0.001]
[1767360989188,2.44390487,3050.5,3049.8,2.4857348]
[1767360990914,2.44390487,3050.4,3049.8,2.4857348]
[1767360991205,2.44390487,3050.4,3049.9,2.4847348]
[1767360993310,2.44390487,3050.3,3049.9,2.4847348]
[1767360994180,2.44390487,3050.3,3049.9,0.001]
[1767360995299,2.44390487,3050.2,3049.9,0.001]
[1767360995503,3.2783178,3050.4,3049.9,2.4847348]
[1767360995504,2.44390487,3050.4,3049.9,2.4847348]
[1767360998088,5.72216969,3050.4,3049.9,2.4847348]
[1767360998698,2.44390487,3050.3,3049.9,2.4847348]
[1767361000913,3.27837634,3050.3,3049.9,2.4847348]
[1767361001122,2.44390487,3050.2,3049.9,2.4847348]
[1767361002118,5.72221469,3050.4,3049.9,2.4847348]
[1767361002510,2.44390487,3050.3,3049.9,2.4847348]
[1767361004134,1.73473325,3052.5,3049.9,2.4847348]
[1767361004135,0.861,3050.7,3049.9,2.4847348]
[1767361004421,2.44390487,3050.6,3049.9,2.4847348]
[1767361004627,2.68829536,3050.6,3049.9,2.4847348]
[1767361005995,2.68829536,3050.6,3049.9,0.001]
[1767361006916,3.27815112,3050.5,3049.9,0.001]
[1767361007132,2.44390487,3050.4,3049.9,0.001]
[1767361009225,2.44390487,3050.4,3049.9,2.4847348]
[1767361009426,0.24439049,3050.6,3049.9,2.4847348]
[1767361009427,2.44390487,3051.0,3050.2,2.4837348]
[1767361012030,2.44490487,3051.0,3050.2,2.4837348]
[1767361012204,5.72254807,3051.0,3050.2,2.4837348]
[1767361012627,5.72254807,3051.0,3050.2,3.2784667]
[1767361012830,5.72254807,3051.0,3050.3,2.4837348]
[1767361015029,2.44490487,3051.0,3050.3,4.70868707]
[1767361015235,2.44490487,3051.0,3050.6,2.4837348]
[1767361015908,0.001,3051.0,3050.6,2.4837348]
[1767361016431,0.001,3051.3,3050.9,2.31395389]
[1767361017208,2.28464073,3051.3,3050.9,2.31395389]
[1767361017833,2.28364073,3051.2,3050.5,2.31395389]
[1767361018032,2.28364073,3051.2,3050.7,2.31395389]
[1767361020310,3.27743565,3051.2,3050.7,2.31395389]
[1767361020511,2.28364073,3051.1,3050.7,2.31395389]
[1767361020913,2.28364073,3051.1,3047.7,3.36078085]
[1767361020914,2.30387132,3050.7,3050.1,2.31395389]
[1767361021112,2.28364073,3050.6,3050.2,2.31395389]
[1767361022210,2.28364073,3050.6,3050.1,0.86]
[1767361022413,2.28364073,3050.5,3050.1,0.86]
[1767361023230,2.28364073,3050.5,3050.0,2.31395389]
[1767361023437,2.28364073,3050.4,3049.9,0.001]
[1767361024145,2.28364073,3050.4,3049.9,2.31495389]
[1767361026566,5.56193237,3051.3,3050.3,2.31395389]
[1767361026853,2.28364073,3051.2,3050.7,2.31395389]
[1767361027427,2.28364073,3051.1,3050.7,2.31395389]
[1767361027623,0.001,3051.3,3050.7,2.31395389]
[1767361027624,0.001,3051.0,3050.7,2.31395389]
[1767361030773,2.28464073,3051.3,3050.8,2.31395389]
[1767361031133,5.56195011,3051.3,3050.8,2.31395389]
[1767361031334,2.28364073,3051.2,3050.8,2.31395389]
[1767361035545,2.28464073,3051.2,3050.8,2.31395389]
[1767361041268,2.28464073,3051.2,3050.5,2.31395389]
[1767361041443,2.28464073,3051.2,3050.5,2.95916826]
[1767361041643,2.28464073,3051.2,3050.6,2.31395389]
[1767361044664,2.28464073,3051.2,3050.5,0.64721437]
[1767361044870,2.28464073,3051.2,3050.6,2.31395389]
[1767361045667,5.56144469,3051.8,3051.0,2.31395389]
[1767361045879,2.28364073,3051.7,3051.2,2.31395389]
[1767361046571,2.28364073,3051.7,3050.7,2.35631356]
[1767361046572,2.43546366,3051.6,3050.7,2.35631356]
[1767361046769,2.43546366,3051.6,3050.9,2.35631356]
[1767361046982,2.43546366,3051.6,3051.1,2.35631356]
[1767361048166,0.001,3051.8,3051.3,2.35631356]
[1767361048353,2.43646366,3052.0,3051.5,2.35631356]
[1767361048957,7.03436227,3052.0,3051.5,2.35631356]
[1767361049254,2.43546366,3051.5,3050.6,2.35631356]
[1767361049452,2.43546366,3051.3,3050.8,2.35631356]
[1767361049761,2.43546366,3051.1,3050.6,2.35631356]
[1767361054965,0.001,3051.2,3050.7,2.35631356]
[1767361055366,2.43646366,3051.2,3050.7,2.35631356]
[1767361059592,2.43546366,3051.1,3050.5,2.35831356]
[1767361059756,2.43546366,3051.1,3050.5,0.002]
[1767361059953,2.43546366,3050.9,3050.5,0.002]
[1767361062297,5.7131899,3050.9,3050.5,0.002]
[1767361062590,2.43546366,3050.8,3050.5,0.002]
[1767361063964,2.67901003,3050.8,3050.5,0.002]
[1767361064164,2.67901003,3050.8,3050.3,2.35631356]
[1767361064366,2.43546366,3050.8,3050.2,0.86]
[1767361064790,2.43546366,3050.7,3050.2,3.21631356]
[1767361065990,2.43546366,3050.7,3050.3,2.35631356]
[1767361073515,3.27756377,3051.1,3050.3,2.35631356]
[1767361073796,2.36021131,3051.1,3050.3,2.35631356]
[1767361073971,3.27844468,3051.2,3050.4,2.5748273]
[1767361074307,3.27844468,3051.2,3050.5,2.33919594]
[1767361074671,5.63865599,3051.2,3050.5,2.33919594]
[1767361074871,2.36021131,3051.4,3050.4,3.5138795]
[1767361075175,5.637457,3051.4,3050.5,2.69058389]
[1767361075373,3.27724569,3051.4,3050.5,2.69058389]
[1767361075573,2.36021131,3051.3,3050.5,2.69058389]
[1767361076496,3.27731581,3051.3,3050.5,2.69058389]
[1767361076801,2.31170236,3051.2,3050.5,2.69058389]
[1767361077172,0.001,3050.7,3050.5,2.69058389]
[1767361077501,0.001,3050.7,3050.6,3.01840326]
[1767361078480,0.001,3050.7,3050.6,2.42152006]
[1767361079602,0.001,3050.7,3050.5,2.77290801]
[1767361081302,0.001,3050.7,3050.5,2.42152006]
[1767361082172,2.31270236,3050.7,3050.3,2.42352006]
[1767361083216,2.31270236,3050.7,3050.1,2.42352006]
[1767361085214,2.31170236,3050.6,3050.3,0.002]
[1767361088421,2.31170236,3050.5,3050.1,0.002]
[1767361088716,2.31170236,3050.5,3050.1,2.42352006]
[1767361089213,2.31170236,3050.5,3050.1,0.002]
[1767361090117,2.31170236,3050.5,3050.1,2.42352006]
[1767361094118,0.001,3050.7,3050.1,2.42352006]
[1767361094305,3.27896236,3050.7,3050.1,2.42352006]
[1767361094631,2.31170236,3050.6,3050.1,2.42352006]
[1767361096017,2.31170236,3050.5,3050.1,2.42352006]
[1767361096213,2.31170236,3050.5,3049.9,0.001]
[1767361096720,2.31170236,3050.3,3049.8,2.42352006]
[1767361098242,2.31170236,3050.2,3049.8,0.002]
[1767361098996,2.31170236,3050.2,3049.6,2.42152006]
[1767361100124,2.31170236,3050.2,3050.0,0.002]
[1767361100322,2.31170236,3050.1,3049.6,2.42152006]
[1767361103759,2.31170236,3050.0,3049.6,2.42152006]
[1767361107958,2.35854875,3049.9,3049.5,0.002]
[1767361108134,2.58971899,3049.9,3049.5,0.002]
[1767361109453,2.35854875,3049.7,3049.3,0.002]
[1767361109655,2.35854875,3049.7,3049.1,0.43452199]
[1767361111564,2.35854875,3049.5,3049.1,0.43452199]
[1767361113756,2.35854875,3049.4,3049.1,0.43452199]
[1767361118546,2.35854875,3049.4,3049.0,0.002]
[1767361119968,2.35854875,3049.4,3049.0,0.43652199]
[1767361123069,2.35854875,3049.4,3049.0,0.002]
[1767361123368,2.35854875,3049.4,3048.9,0.002]
[1767361123369,2.35854875,3049.2,3048.9,0.002]
[1767361124162,2.35854875,3049.2,3048.9,0.43652199]
[1767361127372,2.35854875,3049.2,3048.9,0.002]
[1767361129272,2.35854875,3050.1,3049.1,3.75974619]
[1767361129569,2.35854875,3050.0,3049.3,0.43352199]
[1767361131574,3.27879602,3049.9,3049.3,0.43352199]
[1767361131872,2.35854875,3049.8,3049.3,0.43352199]
[1767361133753,5.6375598,3049.7,3049.3,0.43352199]
[1767361133953,2.35854875,3049.6,3049.1,0.43352199]
[1767361134848,2.35854875,3049.6,3049.0,0.861]
[1767361135076,2.35854875,3049.6,3049.0,0.45784667]
[1767361135277,2.35854875,3049.6,3048.9,1.29652199]
[1767361135457,2.35854875,3049.6,3049.0,0.43552199]
[1767361136160,0.001,3049.8,3049.0,0.43552199]
[1767361136459,2.39322479,3049.6,3049.0,0.43552199]
[1767361138284,2.39322479,3049.5,3049.0,0.43552199]
[1767361139757,2.39322479,3049.5,3049.0,0.40052199]
[1767361141384,2.39322479,3049.5,3049.2,0.40052199]
[1767361141558,2.39322479,3049.7,3049.2,0.40052199]
[1767361142088,0.001,3049.8,3049.4,0.40052199]
[1767361143087,2.39422479,3049.8,3049.4,0.40052199]
[1767361143383,2.39422479,3050.0,3049.2,0.39952199]
[1767361143583,2.39422479,3050.0,3049.4,0.39952199]
[1767361144366,5.67292266,3050.0,3049.4,0.39952199]
[1767361144689,2.39422479,3050.0,3049.4,0.39952199]
[1767361144871,5.67293043,3050.0,3049.4,0.39952199]
[1767361145565,2.39322479,3049.9,3049.4,0.39952199]
[1767361147094,5.6720255,3049.9,3049.4,0.39952199]
[1767361147266,2.39322479,3049.8,3049.4,0.39952199]
[1767361147880,2.39322479,3049.8,3049.1,0.39952199]
[1767361148197,2.39322479,3049.7,3049.1,1.26052199]
[1767361148693,2.39322479,3049.7,3049.2,0.39952199]
[1767361149780,2.39322479,3049.7,3049.1,0.861]
[1767361150093,2.39322479,3049.7,3049.0,4.54228571]
[1767361150294,2.39322479,3049.7,3049.1,0.39952199]
[1767361150490,2.39322479,3049.3,3049.0,0.002]
[1767361150693,2.39322479,3049.3,3048.9,0.002]
[1767361152203,2.39322479,3049.3,3049.0,0.002]
[1767361153769,2.39322479,3049.2,3048.8,0.002]
[1767361155386,2.39322479,3049.2,3048.3,0.002]
[1767361155387,2.39322479,3049.0,3048.3,0.40852302]
[1767361156467,2.39322479,3048.6,3048.3,0.00100103]
[1767361157312,2.39322479,3048.9,3048.3,0.40852302]
[1767361159300,5.67310619,3048.9,3048.3,0.40852302]
[1767361159616,2.39322479,3048.8,3048.3,0.40852302]
[1767361160282,3.75974619,3049.1,3048.4,0.40752199]
[1767361160283,2.39322479,3049.1,3048.4,0.40752199]
[1767361160677,2.39322479,3049.4,3048.5,0.40752199]
[1767361160883,2.39322479,3049.4,3048.6,0.40752199]
[1767361161380,2.39322479,3049.4,3048.7,3.28008659]
[1767361161578,2.39322479,3049.4,3048.8,0.40752199]
[1767361165999,2.31406538,3049.6,3048.9,0.40752199]
[1767361166207,2.31406538,3049.6,3048.9,4.43209514]
[1767361166391,2.31406538,3049.6,3049.0,0.40752199]
[1767361166901,0.001,3049.4,3049.0,0.40752199]
[1767361167318,2.31406538,3049.6,3049.0,0.40652199]
[1767361169413,2.31406538,3049.6,3049.1,0.40652199]
[1767361173322,2.31506538,3049.6,3049.1,0.40652199]
[1767361178798,2.31406538,3049.5,3049.1,0.40652199]
[1767361182234,0.001,3049.6,3049.1,0.40652199]
[1767361182441,0.001,3049.6,3049.1,0.43931854]
[1767361182640,0.001,3049.6,3049.1,0.40652199]
[1767361182835,2.31406538,3049.5,3049.1,0.40652199]
[1767361185027,5.59302789,3049.8,3049.1,0.40552199]
[1767361185413,2.31406538,3049.8,3049.1,0.40552199]
[1767361186032,2.31406538,3049.8,3049.2,0.40552199]
[1767361186330,2.31406538,3049.8,3049.2,0.40452199]
[1767361188237,0.001,3050.0,3049.3,0.40452199]
[1767361188238,2.31506538,3050.0,3049.3,0.40452199]
[1767361189138,2.31506538,3050.0,3049.4,3.27933363]
[1767361189433,2.31506538,3050.0,3049.5,0.40452199]
[1767361190825,2.31506538,3050.2,3049.6,0.40352199]
[1767361193446,0.001,3050.0,3049.6,0.40352199]
[1767361193649,0.001,3050.0,3049.6,0.85789483]
[1767361194558,0.001,3050.0,3049.6,0.45437284]
[1767361194719,0.001,3050.0,3049.6,0.85789483]
[1767361194920,0.001,3050.0,3049.7,0.40352199]
[1767361195457,2.31506538,3050.0,3049.6,0.45437284]
[1767361195915,2.31506538,3050.0,3049.3,3.27938389]
[1767361196118,2.31506538,3050.0,3049.3,4.99827872]
[1767361196553,2.31506538,3050.0,3049.4,0.85789483]
[1767361197252,2.31506538,3050.0,3049.5,0.85789483]
[1767361197651,0.001,3050.0,3049.5,0.85789483]
[1767361197949,0.001,3050.0,3049.4,3.27929616]
[1767361197950,0.001,3050.0,3049.6,1.27161393]
[1767361198249,2.25574138,3050.0,3049.6,1.27161393]
[1767361199252,2.25574138,3050.0,3049.4,0.85789483]
[1767361200636,2.25574138,3050.0,3049.4,4.13722284]
[1767361200950,2.25574138,3050.0,3049.4,3.27932801]
[1767361201156,2.25574138,3050.0,3049.3,0.861]
[1767361201157,2.25574138,3050.0,3049.5,0.85789483]
[1767361201358,2.25574138,3050.0,3049.4,0.85789483]
[1767361202433,2.25574138,3050.0,3049.4,1.40317605]
[1767361203050,2.25574138,3050.0,3049.4,0.54528122]
[1767361203252,2.25574138,3050.0,3049.5,0.85789483]
[1767361208057,0.001,3050.2,3049.9,0.85789483]
[1767361208251,2.25574138,3050.2,3049.9,0.85664291]
[1767361208446,2.25574138,3050.2,3049.6,0.85664291]
[1767361208750,2.25474138,3050.6,3049.8,0.85564291]
[1767361209057,2.25474138,3050.6,3049.9,0.85564291]
[1767361209539,2.09091224,3050.5,3049.9,1.01947205]
[1767361210657,2.09091224,3050.5,3050.0,1.01947205]
[1767361212154,2.09091224,3050.5,3049.8,5.15932874]
[1767361212473,2.09091224,3050.5,3049.9,0.55729156]
[1767361213853,2.09091224,3050.5,3049.9,1.57676361]
[1767361215541,2.09091224,3050.5,3049.9,4.85555459]
[1767361215962,2.09091224,3050.5,3049.9,3.83603914]
[1767361216143,2.09191224,3050.5,3050.0,1.01947205]
[1767361216343,0.001,3050.5,3050.2,1.01947205]
[1767361219645,0.001,3050.7,3050.2,1.01847205]
[1767361220371,2.25574138,3050.7,3050.2,1.01847205]
[1767361221146,0.001,3050.7,3050.2,1.01847205]
[1767361221671,2.25574138,3050.7,3050.2,1.01847205]
[1767361221852,2.25574138,3050.7,3050.3,1.01847205]
[1767361222266,2.25574138,3050.7,3049.9,0.55729156]
[1767361222467,2.25474138,3050.6,3050.0,1.01847205]
[1767361223669,3.27805908,3050.6,3049.8,4.13985485]
[1767361223856,2.25474138,3050.5,3049.9,0.861]
[1767361224053,2.25474138,3050.5,3049.9,1.37684551]
[1767361224558,2.25474138,3050.5,3049.9,2.39531756]
[1767361225268,2.25474138,3050.5,3049.9,1.53431756]
[1767361230379,2.25474138,3050.5,3049.9,4.8131008]
[1767361230558,2.25574138,3050.5,3049.9,4.8131008]
[1767361236382,2.25574138,3050.5,3050.0,1.01847205]
[1767361239066,2.25574138,3050.5,3050.1,1.01847205]
[1767361240688,2.25574138,3050.5,3049.9,1.53631756]
[1767361240990,2.25574138,3050.5,3050.0,1.01847205]
[1767361242871,2.25574138,3050.5,3049.9,0.002]
[1767361243071,2.25574138,3050.5,3050.0,1.01847205]
[1767361244091,0.001,3050.5,3050.0,1.01847205]
[1767361244686,0.001,3050.5,3050.1,1.01847205]
[1767361244863,2.3185578,3050.6,3050.3,1.01747205]
[1767361246880,0.001,3050.7,3050.3,1.01747205]
[1767361247564,2.3195578,3050.7,3050.3,1.01747205]
[1767361247764,0.001,3050.6,3050.3,1.01747205]
[1767361250694,2.3195578,3050.6,3050.3,1.01747205]
[1767361252197,2.3195578,3050.6,3050.1,1.01747205]
[1767361256096,2.3195578,3050.6,3049.9,0.002]
[1767361256097,2.87950985,3050.6,3049.9,0.002]
[1767361256294,2.46667704,3050.5,3049.9,0.002]
[1767361256594,2.46667704,3050.5,3049.9,1.01947205]
[1767361259995,2.46667704,3050.5,3049.9,1.88047205]
[1767361260995,2.46667704,3050.5,3049.9,5.1592192]
[1767361261197,2.46667704,3050.5,3050.0,1.01747205]
[1767361261397,2.46667704,3050.5,3050.1,1.01747205]
[1767361261792,0.001,3050.6,3050.1,1.01747205]
[1767361262096,2.46767704,3050.6,3050.1,1.01747205]
[1767361263604,2.46767704,3050.6,3050.2,1.01747205]
[1767361269908,2.46767704,3050.6,3050.0,0.861]
[1767361270084,2.46767704,3050.6,3050.1,1.01747205]
[1767361270402,2.46667704,3050.5,3050.1,1.01747205]
[1767361270783,2.46667704,3050.5,3050.0,0.861]
[1767361271709,2.46667704,3050.5,3050.1,0.002]
[1767361274714,3.04134129,3050.5,3050.0,0.861]
[1767361274910,3.04134129,3050.5,3049.9,0.002]
[1767361275943,3.04134129,3050.5,3049.9,5.16126111]
[1767361276114,2.46667704,3050.5,3049.9,1.88247205]
[1767361276487,2.46667704,3050.5,3050.0,1.88047205]
[1767361277213,0.001,3050.6,3050.1,1.88047205]
[1767361278300,0.001,3050.6,3050.2,1.88047205]
[1767361282524,0.001,3050.6,3050.3,0.03278366]
[1767361282732,0.001,3050.6,3050.3,1.88047205]
[1767361287434,0.001,3050.8,3050.3,1.87847205]
[1767361288934,2.32998361,3050.8,3050.3,1.87847205]
[1767361292535,2.32898361,3050.7,3050.1,1.87847205]
[1767361293234,2.32898361,3050.6,3050.1,1.87847205]
[1767361301151,2.32898361,3050.6,3050.1,1.50347205]
[1767361311774,2.32898361,3050.5,3050.0,0.002]
[1767361312468,2.32898361,3050.5,3050.0,1.50547205]
[1767361314065,2.32898361,3050.5,3050.0,4.78415144]
[1767361314364,0.001,3050.7,3050.1,1.50347205]
[1767361316465,0.001,3050.7,3050.2,3.27847354]
[1767361316663,2.35952076,3051.1,3050.3,1.50047205]
[1767361317266,2.35952076,3051.1,3050.3,1.53325571]
[1767361317472,2.35952076,3051.1,3050.5,1.50047205]
[1767361318356,2.35952076,3051.1,3050.6,1.50047205]
[1767361321471,2.35952076,3051.1,3050.6,4.77848705]
[1767361321845,2.35952076,3051.1,3050.7,1.50047205]
[1767361328854,2.35952076,3051.1,3050.5,1.50047205]
[1767361332473,2.35852076,3051.0,3050.5,1.50047205]
[1767361334884,2.35852076,3051.0,3050.3,4.77878332]
[1767361335380,2.35852076,3051.0,3050.4,1.50047205]
[1767361340486,2.35852076,3051.0,3050.4,1.50247205]
[1767361340893,2.35852076,3051.0,3050.1,3.27854184]
[1767361340894,2.35852076,3050.8,3050.1,1.50247205]
[1767361341092,2.7962214,3050.7,3050.1,1.50247205]
[1767361341298,2.35852076,3050.7,3050.1,1.50247205]
[1767361342276,2.35852076,3050.7,3050.2,1.50247205]
[1767361345382,2.35852076,3050.6,3050.0,1.50447205]
[1767361345762,2.35852076,3050.6,3050.0,0.002]
[1767361345994,2.35852076,3050.4,3050.0,0.002]
[1767361347704,2.48221468,3050.3,3050.0,0.002]
[1767361348373,2.48221468,3050.3,3049.9,0.002]
[1767361348573,2.48221468,3050.3,3050.0,0.002]
[1767361352918,2.48221468,3050.3,3050.0,1.50647205]
[1767361353417,2.48221468,3050.6,3050.0,1.50647205]
[1767361353580,3.34321468,3050.9,3050.1,1.50447205]
[1767361354100,2.48221468,3050.8,3050.1,1.50447205]
[1767361355105,2.48221468,3050.8,3050.3,1.50447205]
[1767361360201,0.001,3051.1,3050.4,1.50347205]
[1767361360395,0.001,3051.1,3050.6,1.50347205]
[1767361360595,0.001,3051.1,3050.5,0.8060196]
[1767361360596,2.48321468,3051.1,3050.5,0.8060196]
[1767361360898,2.48221468,3051.0,3050.4,1.50347205]
[1767361364716,2.48321468,3051.0,3050.4,1.50347205]
[1767361365909,2.48321468,3051.0,3050.4,4.78170755]
[1767361366117,2.48321468,3051.0,3050.5,1.50347205]
[1767361366702,3.34321468,3051.2,3050.5,1.53425356]
[1767361366901,3.34321468,3051.2,3050.6,1.50147205]
[1767361367716,0.861,3051.2,3050.6,1.50147205]
[1767361367993,2.48221468,3051.1,3050.6,1.50147205]
[1767361370088,3.34321468,3051.2,3050.7,1.50147205]
[1767361370311,2.48221468,3051.1,3050.7,1.50147205]
[1767361373286,2.48321468,3051.1,3050.7,1.50147205]
[1767361373688,2.48321468,3051.1,3050.6,1.50147205]
[1767361375329,2.48321468,3051.1,3050.6,3.27803516]
[1767361375532,2.48321468,3051.1,3050.7,1.50147205]
[1767361381737,11.96486121,3053.6,3051.1,1.49947205]
[1767361381738,2.30019638,3051.8,3051.1,1.49947205]
[1767361382304,2.30019638,3051.8,3051.3,1.49947205]
[1767361382708,0.001,3052.0,3050.7,10.31173858]
[1767361382709,0.001,3052.0,3051.6,1.49747205]
[1767361383203,3.75564628,3053.3,3052.0,1.49347205]
[1767361383402,2.29919638,3053.0,3052.2,1.49347205]
[1767361384050,2.29919638,3053.0,3051.8,1.49347205]
[1767361384051,2.29919638,3052.4,3051.8,1.49347205]
[1767361384407,2.29919638,3052.2,3051.2,1.49347205]
[1767361384641,0.86,3052.7,3051.5,1.49347205]
[1767361384642,2.29919638,3052.0,3051.5,1.49347205]
[1767361388019,2.29919638,3052.0,3051.6,1.49347205]
[1767361388569,2.29919638,3052.6,3051.9,1.49247205]
[1767361389839,2.29919638,3052.7,3052.1,1.49247205]
[1767361391117,2.29919638,3052.7,3052.1,4.76889783]
[1767361391323,2.29919638,3052.7,3052.2,1.49247205]
[1767361395946,2.29919638,3052.6,3052.2,1.49247205]
[1767361396342,2.29919638,3052.6,3051.8,1.49247205]
[1767361397155,2.29919638,3052.6,3051.8,4.76921955]
[1767361397353,2.29919638,3052.6,3051.9,1.49247205]
[1767361402461,2.29919638,3052.6,3051.9,3.27662333]
[1767361402651,2.29919638,3052.6,3052.0,1.49247205]
[1767361403160,0.002,3052.7,3052.0,1.49247205]
[1767361403462,0.002,3052.7,3052.1,1.49247205]
[1767361403664,2.30119638,3052.7,3052.1,1.49247205]
[1767361404044,0.002,3052.6,3052.1,1.49247205]
[1767361404245,0.002,3052.6,3052.3,1.49247205]
[1767361404667,2.30119638,3052.7,3052.0,6.55299761]
[1767361404844,2.30119638,3052.7,3052.1,1.49047205]
[1767361405763,2.30119638,3052.7,3052.2,1.49047205]
[1767361409566,2.30119638,3052.7,3052.1,1.49047205]
[1767361409767,2.30119638,3052.7,3052.3,1.49047205]
[1767361410569,0.002,3052.7,3052.3,1.49047205]
[1767361413767,2.50189425,3052.7,3052.3,1.49047205]
[1767361419747,2.50189425,3052.7,3052.3,1.49147205]
[1767361425882,0.002,3052.7,3052.4,1.49047205]
[1767361426103,0.002,3052.7,3052.4,1.96724879]
[1767361428151,2.49989425,3053.2,3052.5,1.48847205]
[1767361428991,2.49989425,3053.2,3052.6,1.48847205]
[1767361429289,2.49989425,3053.1,3052.3,0.001]
[1767361429475,2.49989425,3052.9,3051.8,1.52223315]
[1767361429779,2.49989425,3052.7,3051.8,1.52223315]
[1767361429981,2.49989425,3052.7,3051.9,1.52223315]
[1767361431074,2.49989425,3052.7,3051.9,4.79886374]
[1767361431280,2.5326555,3052.7,3051.9,4.79886374]
[1767361433375,2.5326555,3052.7,3052.0,1.52223315]
[1767361433577,3.04273314,3052.7,3052.0,1.52223315]
[1767361435056,3.04473314,3052.7,3052.0,1.52223315]
[1767361438695,3.04473314,3052.7,3052.0,4.79876933]
[1767361440285,3.04473314,3052.7,3052.0,1.52223315]
[1767361444189,3.04473314,3052.7,3052.1,1.52223315]
[1767361444190,2.5346555,3052.7,3052.1,1.52223315]
[1767361447204,0.002,3052.7,3052.2,1.52223315]
[1767361447401,3.27617766,3053.3,3052.4,1.52023315]
[1767361447402,2.30393261,3053.3,3052.4,1.52023315]
[1767361447701,2.30393261,3053.3,3052.6,1.52023315]
[1767361447916,0.001,3053.3,3052.8,1.52023315]
[1767361448275,2.30293261,3053.4,3052.8,1.51923315]
[1767361450003,2.30293261,3053.4,3052.9,1.51923315]
[1767361451811,2.30493261,3053.4,3052.9,1.51923315]
[1767361451977,2.30493261,3053.4,3053.0,2.08472414]
[1767361457498,2.30293261,3053.2,3052.6,3.27588548]
[1767361457694,2.30293261,3053.2,3052.6,5.65511863]
[1767361457899,2.30293261,3053.2,3052.7,1.51923315]
[1767361462416,2.30293261,3053.2,3052.7,4.79501716]
[1767361462589,2.30293261,3053.2,3052.8,0.56550172]
[1767361462790,2.30293261,3053.2,3052.8,2.08473487]
[1767361464989,2.30293261,3053.2,3052.8,3.84116291]
[1767361465188,2.30293261,3053.2,3052.9,1.51923315]
[1767361465414,0.002,3053.4,3052.9,1.51923315]
[1767361465587,2.30493261,3053.4,3052.9,1.51923315]
[1767361467792,2.46455756,3053.3,3052.7,1.51923315]
[1767361468918,2.46455756,3053.3,3052.6,3.27589595]
[1767361469109,2.46455756,3053.3,3052.8,1.51923315]
[1767361477135,2.46655756,3053.3,3052.8,1.51923315]
[1767361478313,2.46655756,3053.3,3052.8,4.79490801]
[1767361478737,2.46655756,3053.3,3052.8,1.51923315]
[1767361480417,2.46655756,3053.3,3052.2,4.79555122]
[1767361480418,2.46455756,3052.8,3052.2,4.79555122]
[1767361480617,2.46455756,3052.8,3052.3,1.55299532]
[1767361480823,2.46455756,3052.8,3052.3,1.52023315]
[1767361481319,2.46455756,3052.8,3052.0,1.52123315]
[1767361482618,2.46455756,3052.8,3052.0,4.79774638]
[1767361482818,2.46455756,3052.8,3052.1,1.52023315]
[1767361484642,5.74033633,3052.8,3052.1,1.52023315]
[1767361484945,2.46455756,3052.7,3052.1,1.52023315]
[1767361485345,2.46455756,3052.7,3052.0,0.001]
[1767361485948,2.46455756,3052.7,3052.0,1.52123315]
[1767361486438,2.46455756,3052.6,3052.0,1.52123315]
[1767361488555,2.46455756,3052.0,3051.5,1.52223315]